fUST/lending_fUST_20250501
["ID","MTS","AMOUNT","RATE_DAILY","PERIOD"]
[359544864,1746099043304,-151.0,0.00035616,14]
[359544865,1746099043313,-400.0,0.00035616,12]
[359544866,1746099043323,-484.82,0.00035616,12]
[359544867,1746099043332,-400.0,0.00035616,12]
[359544868,1746099043342,-500.0,0.00035616,12]
[359544869,1746099043351,-400.0,0.00035616,12]
[359544870,1746099043361,-4988.508206,0.00035616,2]
[359544871,1746099043371,-401.16857047,0.00035616,12]
[359544872,1746099043380,-401.03169176,0.00035616,12]
[359544873,1746099043390,-400.0,0.00035616,12]
[359544874,1746099043399,-400.0,0.00035616,12]
[359544875,1746099043409,-4988.508206,0.00035616,2]
[359544876,1746099043419,-404.77372637,0.00035616,12]
[359544878,1746099043429,-400.0,0.00035616,2]
[359544879,1746099043438,-400.0,0.00035616,12]
[359544880,1746099043448,-400.0,0.00035616,12]
[359544881,1746099043457,-400.0,0.00035616,12]
[359544882,1746099043467,-400.0,0.00035616,12]
[359544883,1746099043476,-400.0,0.00035616,12]
[359544884,1746099043486,-400.0,0.00035616,12]
[359544885,1746099043495,-400.0,0.00035616,12]
[359544886,1746099043505,-400.0,0.00035616,5]
[359544887,1746099043514,-400.0,0.00035616,12]
[359544888,1746099043523,-423.42339963,0.00035616,12]
[359544889,1746099043533,-400.0,0.00035616,12]
[359544890,1746099043542,-400.0,0.00035616,12]
[359544891,1746099043552,-685.61,0.00035616,12]
[359544892,1746099043562,-400.0,0.00035616,12]
[359544893,1746099043571,-151.0,0.00035616,14]
[359544894,1746099043581,-151.0,0.00035616,14]
[359544895,1746099043590,-400.0,0.00035616,12]
[359544896,1746099043600,-400.0,0.00035616,12]
[359544897,1746099043609,-553.0,0.00035616,12]
[359544898,1746099043618,-400.0,0.00035616,12]
[359544899,1746099043628,-400.0,0.00035616,12]
[359544900,1746099043638,-151.0,0.00035616,14]
[359544901,1746099043648,-400.0,0.00035616,12]
[359544902,1746099043657,-424.95,0.00035616,12]
[359544903,1746099043667,-400.0,0.00035616,12]
[359544904,1746099043677,-400.0,0.00035616,12]
[359544905,1746099043686,-400.0,0.00035616,12]
[359544906,1746099043696,-1093.53,0.00035616,12]
[359544907,1746099043706,-400.0,0.00035616,12]
[359544908,1746099043716,-400.0,0.00035616,12]
[359544909,1746099043726,-151.0,0.00035616,14]
[359544910,1746099043736,-400.0,0.00035616,12]
[359544911,1746099043746,-404.66842732,0.00035616,12]
[359544912,1746099043757,-178.64325405,0.00035616,12]
[359544913,1746099043768,-400.0,0.00035616,12]
[359544914,1746099043778,-208.342809,0.00035616,14]
[359544915,1746099043787,-400.0,0.00035616,12]
[359544916,1746099043797,-229.64841402,0.00035616,12]
[359544917,1746099043807,-400.0,0.00035616,12]
[359544918,1746099043817,-400.0,0.00035616,12]
[359544919,1746099043826,-400.0,0.00035616,12]
[359544920,1746099043836,-208.342809,0.00035616,14]
[359544921,1746099043845,-400.0,0.00035616,12]
[359544922,1746099043855,-615.58,0.00035616,12]
[359544923,1746099043865,-230.56673692,0.00035616,12]
[359544924,1746099043875,-400.0,0.00035616,12]
[359544925,1746099043885,-400.0,0.00035616,12]
[359544926,1746099043894,-164.044019,0.00035616,14]
[359544927,1746099043904,-507.45206023,0.00035616,12]
[359544928,1746099043913,-966.08,0.00035616,12]
[359544929,1746099043923,-1330.26,0.00035616,12]
[359544930,1746099043932,-872.39,0.00035616,12]
[359544931,1746099043942,-164.044019,0.00035616,14]
[359544932,1746099043951,-400.0,0.00035616,12]
[359544933,1746099043961,-400.0,0.00035616,12]
[359544934,1746099043971,-738.77,0.00035616,12]
[359544935,1746099043980,-400.0,0.00035616,12]
[359544936,1746099043990,-400.0,0.00035616,12]
[359544937,1746099044000,-400.0,0.00035616,12]
[359544938,1746099044010,-412.81,0.00035616,12]
[359544939,1746099044020,-400.0,0.00035616,12]
[359544940,1746099044031,-1262.69,0.00035616,12]
[359544941,1746099044040,-505.10898825,0.00035616,12]
[359544942,1746099044050,-406.48085839,0.00035616,12]
[359544943,1746099044060,-800.73,0.00035616,12]
[359544944,1746099044069,-400.0,0.00035616,12]
[359544945,1746099044079,-400.0,0.00035616,12]
[359544946,1746099044089,-400.0,0.00035616,12]
[359544947,1746099044098,-173.9867853,0.00035616,12]
[359544948,1746099044108,-400.0,0.00035616,12]
[359544949,1746099044117,-151.0,0.00035616,14]
[359544950,1746099044126,-400.0,0.00035616,12]
[359544951,1746099044136,-400.0,0.00035616,12]
[359544952,1746099044146,-424.99251723,0.00035616,12]
[359544953,1746099044156,-400.0,0.00035616,12]
[359544954,1746099044168,-400.0,0.00035616,12]
[359544955,1746099044178,-400.0,0.00035616,12]
[359544956,1746099044188,-408.53,0.00035616,12]
[359544957,1746099044198,-675.75,0.00035616,12]
[359544958,1746099044207,-400.0,0.00035616,12]
[359544959,1746099044217,-400.0,0.00035616,12]
[359544960,1746099044227,-400.0,0.00035616,12]
[359544961,1746099044236,-502.02247912,0.00035616,12]
[359544962,1746099044246,-400.0,0.00035616,12]
[359544963,1746099044255,-469.81,0.00035616,12]
[359544964,1746099044267,-487.25,0.00035616,12]
[359544965,1746099044276,-400.0,0.00035616,12]
[359544966,1746099044285,-400.0,0.00035616,12]
[359544967,1746099044295,-400.0,0.00035616,12]
[359544968,1746099044304,-5144.69,0.00035616,12]
[359544969,1746099044315,-400.0,0.00035616,12]
[359544970,1746099044326,-400.0,0.00035616,12]
[359544971,1746099044335,-300.0,0.00035616,12]
[359544972,1746099044345,-400.0,0.00035616,12]
[359544973,1746099044356,-400.0,0.00035616,12]
[359544974,1746099044366,-400.0,0.00035616,7]
[359544975,1746099044376,-267.67186048,0.00035616,12]
[359544976,1746099044386,-151.0,0.00035616,14]
[359544977,1746099044396,-400.0,0.00035616,12]
[359544978,1746099044405,-400.0,0.00035616,12]
[359544979,1746099044415,-400.0,0.00035616,12]
[359544980,1746099044425,-445.06,0.00035616,12]
[359544981,1746099044435,-503.04766787,0.00035616,12]
[359544982,1746099044444,-400.0,0.00035616,12]
[359544983,1746099044453,-501.14687486,0.00035616,12]
[359544984,1746099044512,-400.0,0.00035616,12]
[359544985,1746099044525,-400.0,0.00035616,12]
[359544986,1746099044534,-400.0,0.00035616,12]
[359544987,1746099044544,-586.63,0.00035616,12]
[359544988,1746099044553,-860.27,0.00035616,12]
[359544989,1746099044562,-400.0,0.00035616,12]
[359544990,1746099044571,-400.0,0.00035616,12]
[359544991,1746099044581,-400.0,0.00035616,12]
[359544992,1746099044590,-400.0,0.00035616,12]
[359544993,1746099044599,-400.0,0.00035616,12]
[359544994,1746099044608,-506.44637784,0.00035616,12]
[359544995,1746099044618,-1197.3,0.00035616,12]
[359544996,1746099044627,-558.4,0.00035616,12]
[359544997,1746099044637,-400.0,0.00035616,12]
[359544998,1746099044646,-400.0,0.00035616,12]
[359544999,1746099044656,-151.0,0.00035616,14]
[359545000,1746099044665,-400.0,0.00035616,12]
[359545001,1746099044675,-400.0,0.00035616,12]
[359545002,1746099044684,-400.0,0.00035616,12]
[359545003,1746099044693,-544.239094,0.00035616,14]
[359545004,1746099044702,-400.0,0.00035616,12]
[359545005,1746099044711,-1593.45,0.00035616,12]
[359545006,1746099044720,-462.28,0.00035616,12]
[359545007,1746099044730,-707.67,0.00035616,12]
[359545008,1746099044739,-544.239094,0.00035616,14]
[359545009,1746099044749,-400.0,0.00035616,12]
[359545010,1746099044759,-5556.81,0.00035616,12]
[359545011,1746099044769,-400.0,0.00035616,12]
[359545012,1746099044779,-622.79,0.00035616,12]
[359545013,1746099044788,-400.0,0.00035616,12]
[359545014,1746099044798,-400.0,0.00035616,12]
[359545015,1746099044807,-400.0,0.00035616,12]
[359545016,1746099044817,-400.0,0.00035616,12]
[359545017,1746099044826,-400.0,0.00035616,12]
[359545018,1746099044836,-416.45,0.00035616,12]
[359545019,1746099044846,-187.59882572,0.00035616,12]
[359545020,1746099044855,-400.0,0.00035616,12]
[359545021,1746099044865,-400.0,0.00035616,12]
[359545022,1746099044875,-520.16,0.00035616,12]
[359545023,1746099044884,-400.0,0.00035616,12]
[359545024,1746099044894,-400.0,0.00035616,12]
[359545025,1746099044904,-1481.16,0.00035616,12]
[359545026,1746099044914,-400.0,0.00035616,12]
[359545027,1746099044924,-400.0,0.00035616,12]
[359545028,1746099044933,-639.44,0.00035616,12]
[359545029,1746099044943,-958.67,0.00035616,12]
[359545030,1746099044953,-400.0,0.00035616,12]
[359545031,1746099044962,-400.0,0.00035616,12]
[359545032,1746099044973,-2624.53,0.00035616,12]
[359545033,1746099044982,-400.0,0.00035616,12]
[359545034,1746099044992,-400.0,0.00035616,12]
[359545035,1746099045001,-400.0,0.00035616,12]
[359545036,1746099045011,-400.0,0.00035616,12]
[359545037,1746099045023,-400.0,0.00035616,12]
[359545038,1746099045033,-400.0,0.00035616,12]
[359545039,1746099045043,-400.0,0.00035616,12]
[359545040,1746099045052,-400.0,0.00035616,12]
[359545041,1746099045061,-400.0,0.00035616,12]
[359545042,1746099045070,-400.0,0.00035616,12]
[359545043,1746099045080,-400.0,0.00035616,12]
[359545044,1746099045090,-3719.67,0.00035616,12]
[359545045,1746099045099,-577.46,0.00035616,12]
[359545046,1746099045109,-619.44,0.00035616,12]
[359545047,1746099045119,-400.0,0.00035616,12]
[359545048,1746099045128,-400.0,0.00035616,12]
[359545049,1746099045138,-400.0,0.00035616,12]
[359545050,1746099045147,-695.23,0.00035616,12]
[359545051,1746099045159,-220.72528717,0.00035616,12]
[359545052,1746099045169,-891.82,0.00035616,12]
[359545053,1746099045179,-400.0,0.00035616,12]
[359545054,1746099045189,-400.0,0.00035616,12]
[359545055,1746099045199,-400.0,0.00035616,12]
[359545056,1746099045208,-1334.47,0.00035616,12]
[359545057,1746099045217,-557.38,0.00035616,12]
[359545058,1746099045228,-400.0,0.00035616,12]
[359545059,1746099045239,-341.119758,0.00035616,14]
[359545060,1746099045249,-501.30853866,0.00035616,2]
[359545061,1746099045259,-339.07980424,0.00035616,12]
[359545062,1746099045269,-523.42271375,0.00035616,12]
[359545063,1746099045279,-400.0,0.00035616,12]
[359545064,1746099045288,-151.0,0.00035616,14]
[359545065,1746099045298,-504.44681276,0.00035616,12]
[359545066,1746099045307,-341.119758,0.00035616,14]
[359545067,1746099045317,-151.0,0.00035616,14]
[359545068,1746099045327,-400.0,0.00035616,12]
[359545069,1746099045337,-1598.35,0.00035616,12]
[359545070,1746099045346,-151.0,0.00035616,14]
[359545071,1746099045356,-151.0,0.00035616,14]
[359545072,1746099045365,-507.4,0.00035616,12]
[359545073,1746099045375,-500.0,0.00035616,12]
[359545074,1746099045384,-400.0,0.00035616,12]
[359545075,1746099045394,-485.4,0.00035616,12]
[359545076,1746099045403,-259.612865,0.00035616,14]
[359545077,1746099045412,-400.0,0.00035616,12]
[359545078,1746099045422,-614.83,0.00035616,12]
[359545079,1746099045431,-400.0,0.00035616,12]
[359545080,1746099045441,-400.0,0.00035616,12]
[359545081,1746099045451,-259.612865,0.00035616,14]
[359545082,1746099045460,-501.2329953,0.00035616,12]
[359545083,1746099045469,-415.16,0.00035616,12]
[359545084,1746099045479,-697.97,0.00035616,12]
[359545085,1746099045488,-427.46,0.00035616,12]
[359545086,1746099045496,-906.57,0.00035616,12]
[359545087,1746099045505,-237.48891662,0.00035616,12]
[359545088,1746099045513,-501.19424882,0.00035616,12]
[359545089,1746099045523,-485.45,0.00035616,12]
[359545090,1746099045534,-400.0,0.00035616,12]
[359545091,1746099045543,-501.72148121,0.00035616,12]
[359545092,1746099045552,-400.0,0.00035616,12]
[359545093,1746099045560,-400.0,0.00035616,12]
[359545094,1746099045569,-400.0,0.00035616,12]
[359545095,1746099045578,-530.62,0.00035616,12]
[359545096,1746099045587,-400.0,0.00035616,12]
[359545097,1746099045596,-528.59,0.00035616,12]
[359545098,1746099045605,-400.0,0.00035616,12]
[359545099,1746099045615,-438.14,0.00035616,12]
[359545100,1746099045625,-400.0,0.00035616,12]
[359545101,1746099045635,-400.0,0.00035616,12]
[359545102,1746099045645,-4117.82,0.00035616,2]
[359545103,1746099045656,-400.0,0.00035616,12]
[359545104,1746099045666,-469.99,0.00035616,12]
[359545105,1746099045676,-400.0,0.00035616,12]
[359545106,1746099045685,-400.0,0.00035616,12]
[359545107,1746099045694,-647.92,0.00035616,12]
[359545108,1746099045704,-400.0,0.00035616,12]
[359545109,1746099045713,-400.0,0.00035616,12]
[359545110,1746099045723,-1203.2,0.00035616,12]
[359545111,1746099045733,-400.0,0.00035616,12]
[359545112,1746099045744,-1294.66,0.00035616,12]
[359545113,1746099045753,-2048.5,0.00035616,12]
[359545114,1746099045763,-400.0,0.00035616,12]
[359545115,1746099045774,-984.03,0.00035616,12]
[359545116,1746099045783,-624.21,0.00035616,12]
[359545117,1746099045793,-400.0,0.00035616,12]
[359545118,1746099045803,-400.0,0.00035616,12]
[359545119,1746099045813,-400.0,0.00035616,12]
[359545120,1746099045822,-4164.54,0.00035616,12]
[359545121,1746099045831,-400.0,0.00035616,12]
[359545122,1746099045841,-639.68,0.00035616,12]
[359545124,1746099045851,-724.1,0.00035616,12]
[359545125,1746099045860,-1044.17,0.00035616,12]
[359545126,1746099045870,-400.0,0.00035616,12]
[359545127,1746099045879,-400.0,0.00035616,12]
[359545128,1746099045888,-500.0,0.00035616,12]
[359545129,1746099045898,-483.59422991,0.00035616,12]
[359545130,1746099045907,-400.0,0.00035616,12]
[359545131,1746099045917,-400.0,0.00035616,12]
[359545132,1746099045926,-400.0,0.00035616,12]
[359545133,1746099045935,-400.0,0.00035616,12]
[359545134,1746099045945,-206.08406753,0.00035616,12]
[359545135,1746099045954,-400.0,0.00035616,12]
[359545137,1746099045964,-536.53,0.00035616,12]
[359545139,1746099045972,-981.09,0.00035616,12]
[359545140,1746099045982,-400.0,0.00035616,12]
[359545141,1746099045992,-400.0,0.00035616,12]
[359545142,1746099046001,-523.92,0.00035616,12]
[359545143,1746099046010,-400.0,0.00035616,12]
[359545144,1746099046022,-400.0,0.00035616,12]
[359545145,1746099046032,-400.0,0.00035616,2]
[359545146,1746099046042,-400.0,0.00035616,12]
[359545147,1746099046052,-400.72595718,0.00035616,12]
[359545148,1746099046061,-400.0,0.00035616,12]
[359545149,1746099046071,-400.0,0.00035616,12]
[359545150,1746099046081,-1129.55,0.00035616,12]
[359545151,1746099046092,-400.0,0.00035616,12]
[359545152,1746099046101,-1134.57,0.00035616,12]
[359545153,1746099046111,-573.36,0.00035616,12]
[359545154,1746099046120,-400.0,0.00035616,12]
[359545155,1746099046129,-200.79543586,0.00035616,12]
[359545156,1746099046139,-400.0,0.00035616,12]
[359545157,1746099046149,-400.0,0.00035616,12]
[359545158,1746099046162,-400.0,0.00035616,12]
[359545159,1746099046172,-229.17550182,0.00035616,12]
[359545160,1746099046181,-17107.38,0.00035616,12]
[359545161,1746099046191,-400.0,0.00035616,12]
[359545162,1746099046201,-603.49,0.00035616,12]
[359545163,1746099046211,-400.0,0.00035616,12]
[359545164,1746099046220,-672.01,0.00035616,12]
[359545165,1746099046230,-400.0,0.00035616,12]
[359545167,1746099046239,-729.03,0.00035616,12]
[359545168,1746099046250,-400.0,0.00035616,7]
[359545169,1746099046260,-400.0,0.00035616,12]
[359545170,1746099046271,-400.0,0.00035616,12]
[359545171,1746099046280,-456.16,0.00035616,12]
[359545172,1746099046290,-400.0,0.00035616,12]
[359545173,1746099046300,-400.0,0.00035616,12]
[359545174,1746099046310,-3349.05,0.00035616,12]
[359545175,1746099046319,-400.0,0.00035616,12]
[359545176,1746099046329,-1286.57,0.00035616,12]
[359545177,1746099046340,-400.0,0.00035616,12]
[359545178,1746099046349,-1200.69,0.00035616,12]
[359545179,1746099046359,-400.0,0.00035616,12]
[359545180,1746099046368,-400.0,0.00035616,12]
[359545181,1746099046378,-502.27892226,0.00035673,5]
[359545182,1746099046387,-557.61487905,0.00035673,5]
[359545183,1746099046397,-841.10298755,0.000357,7]
[359545184,1746099046406,-160.0,0.000357,7]
[359545185,1746099046416,-160.0,0.000357,7]
[359545186,1746099046426,-160.0,0.0003588,3]
[359545187,1746099046435,-151.0,0.0003589,14]
[359545189,1746099046446,-2578.7,0.0003589,12]
[359545190,1746099046455,-260.88330441,0.0003589,2]
[359545191,1746099046465,-400.0,0.0003589,12]
[359545192,1746099046474,-401.6853395,0.0003589,12]
[359545193,1746099046484,-400.0,0.0003589,12]
[359545194,1746099046493,-400.0,0.0003589,12]
[359545195,1746099046503,-406.62882587,0.0003589,12]
[359545196,1746099046513,-400.0,0.0003589,12]
[359545197,1746099046523,-400.0,0.0003589,12]
[359545198,1746099046532,-400.0,0.0003589,12]
[359545199,1746099046542,-400.0,0.0003589,12]
[359545200,1746099046552,-478.93,0.0003589,12]
[359545201,1746099046561,-521.9763055,0.0003589,12]
[359545202,1746099046571,-531.75,0.0003589,12]
[359545203,1746099046580,-400.0,0.0003589,12]
[359545204,1746099046590,-400.0,0.0003589,12]
[359545205,1746099046601,-400.0,0.0003589,12]
[359545206,1746099046610,-400.0,0.0003589,12]
[359545207,1746099046620,-400.0,0.0003589,12]
[359545208,1746099046630,-400.0,0.0003589,12]
[359545209,1746099046639,-400.0,0.0003589,12]
[359545210,1746099046649,-400.0,0.0003589,12]
[359545211,1746099046659,-443.6104134,0.0003589,12]
[359545212,1746099046669,-400.0,0.0003589,12]
[359545213,1746099046679,-400.0,0.0003589,12]
[359545214,1746099046689,-400.0,0.0003589,12]
[359545215,1746099046699,-400.0,0.0003589,12]
[359545216,1746099046709,-400.0,0.0003589,12]
[359545217,1746099046718,-400.0,0.0003589,12]
[359545218,1746099046730,-400.0,0.0003589,12]
[359545219,1746099046738,-400.0,0.0003589,12]
[359545220,1746099046748,-400.0,0.0003589,12]
[359545221,1746099046757,-400.0,0.0003589,12]
[359545222,1746099046767,-400.0,0.0003589,12]
[359545223,1746099046777,-400.0,0.0003589,12]
[359545224,1746099046787,-347.83898411,0.0003589,12]
[359545225,1746099046796,-400.0,0.0003589,12]
[359545226,1746099046806,-494.99,0.0003589,12]
[359545227,1746099046815,-517.89450308,0.0003589,12]
[359545228,1746099046825,-400.0,0.0003589,12]
[359545229,1746099046834,-286.9853362,0.0003589,12]
[359545230,1746099046843,-400.0,0.0003589,12]
[359545231,1746099046853,-927.1,0.0003589,12]
[359545232,1746099046863,-400.0,0.0003589,12]
[359545233,1746099046872,-828.07,0.0003589,12]
[359545234,1746099046882,-400.0,0.0003589,2]
[359545235,1746099046892,-400.0,0.0003589,12]
[359545236,1746099046901,-400.0,0.0003589,12]
[359545237,1746099046912,-400.0,0.0003589,12]
[359545238,1746099046922,-400.0,0.0003589,12]
[359545239,1746099046932,-400.0,0.0003589,12]
[359545240,1746099046942,-400.0,0.0003589,12]
[359545241,1746099046952,-400.0,0.0003589,12]
[359545242,1746099046961,-400.0,0.0003589,12]
[359545243,1746099046971,-400.0,0.0003589,12]
[359545244,1746099046980,-649.87,0.0003589,12]
[359545245,1746099046990,-400.0,0.0003589,12]
[359545246,1746099046999,-400.0,0.0003589,12]
[359545247,1746099047009,-400.0,0.0003589,12]
[359545248,1746099047021,-733.43,0.0003589,12]
[359545249,1746099047031,-400.0,0.0003589,12]
[359545250,1746099047040,-1710.58,0.0003589,12]
[359545251,1746099047049,-1416.35,0.0003589,12]
[359545252,1746099047059,-427.23270858,0.0003589,12]
[359545253,1746099047069,-400.0,0.0003589,12]
[359545254,1746099047079,-400.0,0.0003589,12]
[359545255,1746099047088,-400.0,0.0003589,12]
[359545256,1746099047098,-400.0,0.0003589,12]
[359545257,1746099047108,-400.0,0.0003589,12]
[359545258,1746099047119,-400.0,0.0003589,12]
[359545259,1746099047128,-473.11,0.0003589,12]
[359545260,1746099047138,-421.96,0.0003589,12]
[359545261,1746099047148,-400.0,0.0003589,12]
[359545262,1746099047160,-756.66,0.0003589,12]
[359545263,1746099047171,-682.23,0.0003589,12]
[359545264,1746099047181,-501.28122029,0.0003589,12]
[359545265,1746099047191,-400.0,0.0003589,12]
[359545266,1746099047201,-400.0,0.0003589,12]
[359545267,1746099047211,-400.0,0.0003589,12]
[359545268,1746099047221,-400.0,0.0003589,12]
[359545269,1746099047231,-809.48,0.0003589,12]
[359545270,1746099047243,-400.0,0.0003589,12]
[359545271,1746099047253,-503.89,0.0003589,12]
[359545272,1746099047263,-400.0,0.0003589,12]
[359545273,1746099047273,-400.0,0.0003589,12]
[359545274,1746099047282,-1020.92,0.0003589,12]
[359545275,1746099047292,-400.0,0.0003589,12]
[359545276,1746099047303,-1436.16,0.0003589,12]
[359545277,1746099047313,-400.0,0.0003589,12]
[359545278,1746099047323,-256.91700765,0.0003589,12]
[359545279,1746099047333,-500.0,0.0003589,12]
[359545280,1746099047343,-400.0,0.0003589,12]
[359545281,1746099047353,-400.0,0.0003589,12]
[359545282,1746099047363,-674.37,0.0003589,12]
[359545283,1746099047374,-400.0,0.0003589,12]
[359545284,1746099047384,-400.0,0.0003589,12]
[359545285,1746099047394,-404.26,0.0003589,12]
[359545286,1746099047403,-400.0,0.0003589,12]
[359545287,1746099047413,-400.0,0.0003589,12]
[359545288,1746099047423,-400.0,0.0003589,12]
[359545289,1746099047433,-400.0,0.0003589,12]
[359545290,1746099047443,-400.0,0.0003589,12]
[359545291,1746099047452,-400.0,0.0003589,12]
[359545292,1746099047462,-400.0,0.0003589,12]
[359545293,1746099047472,-400.0,0.0003589,12]
[359545294,1746099047481,-586.08,0.0003589,12]
[359545295,1746099047491,-534.24,0.0003589,12]
[359545296,1746099047500,-400.0,0.0003589,12]
[359545297,1746099047510,-400.0,0.0003589,12]
[359545298,1746099047519,-886.62,0.0003589,12]
[359545299,1746099047529,-400.0,0.0003589,12]
[359545300,1746099047539,-168.67623506,0.0003589,12]
[359545301,1746099047549,-400.0,0.0003589,12]
[359545302,1746099047563,-521.11340561,0.0003589,12]
[359545303,1746099047574,-400.0,0.0003589,12]
[359545304,1746099047584,-400.0,0.0003589,12]
[359545305,1746099047594,-492.76778243,0.0003589,12]
[359545306,1746099047604,-400.0,0.0003589,12]
[359545307,1746099047613,-400.0,0.0003589,12]
[359545308,1746099047623,-400.0,0.0003589,12]
[359545309,1746099047633,-400.0,0.0003589,12]
[359545310,1746099047643,-400.0,0.0003589,12]
[359545311,1746099047652,-400.0,0.0003589,12]
[359545312,1746099047662,-400.0,0.0003589,12]
[359545313,1746099047672,-400.0,0.0003589,12]
[359545314,1746099047682,-400.0,0.0003589,12]
[359545315,1746099047692,-400.0,0.0003589,12]
[359545316,1746099047702,-400.0,0.0003589,12]
[359545317,1746099047713,-400.0,0.0003589,12]
[359545318,1746099047722,-238.10203956,0.0003589,12]
[359545319,1746099047732,-301.74819044,0.0003589,12]
[359545320,1746099047742,-406.18,0.0003589,12]
[359545321,1746099047752,-400.0,0.0003589,5]
[359545322,1746099047761,-400.0,0.0003589,12]
[359545323,1746099047769,-400.0,0.0003589,12]
[359545324,1746099047777,-400.0,0.0003589,12]
[359545325,1746099047785,-400.0,0.0003589,12]
[359545326,1746099047794,-449.62,0.0003589,12]
[359545327,1746099047803,-400.0,0.0003589,12]
[359545328,1746099047811,-419.72573388,0.0003589,12]
[359545329,1746099047821,-302.70317096,0.0003589,12]
[359545330,1746099047830,-400.0,0.0003589,12]
[359545331,1746099047841,-400.0,0.0003589,12]
[359545332,1746099047850,-400.0,0.0003589,12]
[359545333,1746099047860,-400.0,0.0003589,12]
[359545334,1746099047870,-400.0,0.0003589,12]
[359545335,1746099047879,-751.4,0.0003589,12]
[359545336,1746099047890,-400.0,0.0003589,12]
[359545337,1746099047900,-400.0,0.0003589,12]
[359545338,1746099047910,-400.0,0.0003589,12]
[359545339,1746099047920,-400.0,0.0003589,12]
[359545340,1746099047930,-699.58,0.0003589,12]
[359545341,1746099047940,-400.0,0.0003589,12]
[359545342,1746099047950,-400.0,0.0003589,12]
[359545343,1746099047959,-400.0,0.0003589,12]
[359545344,1746099047971,-368.25562318,0.0003589,12]
[359545345,1746099047981,-400.0,0.0003589,12]
[359545346,1746099047991,-400.0,0.0003589,12]
[359545347,1746099048001,-400.0,0.0003589,12]
[359545348,1746099048011,-400.0,0.0003589,12]
[359545349,1746099048023,-400.0,0.0003589,12]
[359545350,1746099048032,-630.58,0.0003589,12]
[359545351,1746099048042,-400.0,0.0003589,12]
[359545352,1746099048053,-400.0,0.0003589,12]
[359545353,1746099048063,-400.0,0.0003589,12]
[359545354,1746099048072,-2638.67,0.0003589,12]
[359545355,1746099048082,-400.0,0.0003589,12]
[359545356,1746099048092,-400.0,0.0003589,12]
[359545357,1746099048102,-158.46990582,0.0003589,12]
[359545358,1746099048112,-400.0,0.0003589,12]
[359545359,1746099048122,-199.74731985,0.0003589,12]
[359545360,1746099048132,-400.0,0.0003589,12]
[359545361,1746099048142,-400.0,0.0003589,12]
[359545362,1746099048153,-400.0,0.0003589,12]
[359545363,1746099048169,-431.78204399,0.0003589,12]
[359545364,1746099048179,-400.0,0.0003589,12]
[359545365,1746099048188,-418.14,0.0003589,12]
[359545366,1746099048198,-400.0,0.0003589,12]
[359545367,1746099048207,-400.0,0.0003589,12]
[359545368,1746099048216,-400.0,0.0003589,12]
[359545369,1746099048227,-400.0,0.0003589,12]